[Event "4th Sinquefield Cup 2016"]
[Site "Saint Louis"]
[Date "2016.08.07"]
[Round "3"]
[White "Giri, Anish"]
[Black "Ding, Liren"]
[Result "1/2-1/2"]
[ECO "C84"]
[WhiteElo "2769"]
[BlackElo "2755"]
[PlyCount "76"]
[EventDate "2016.??.??"]
[EventCountry "USA"]
[SourceTitle "playchess.com"]
[Source "ChessBase"]
[TimeControl "40/7200:3600+30"]

1. e4 {[%emt 0:00:02]} e5 {[%emt 0:00:07]} 2. Nf3 {[%emt 0:00:04]} Nc6 {
[%emt 0:00:04]} 3. Bb5 {[%emt 0:00:10]} a6 {[%emt 0:00:05]} 4. Ba4 {[%emt 0:00:
03]} Nf6 {[%emt 0:00:08]} 5. O-O {[%emt 0:00:23]} Be7 {[%emt 0:00:09]} 6. d3 {
106} b5 {[%emt 0:00:30]} 7. Bb3 {[%emt 0:00:03]} d6 {[%emt 0:00:04]} 8. a3 {
[%emt 0:00:03]} Na5 {[%emt 0:00:46]} 9. Ba2 {[%emt 0:00:08]} c5 {[%emt 0:00:06]
} 10. Nc3 {[%emt 0:00:12]} Be6 {[%emt 0:00:08]} 11. Nh4 {[%emt 0:00:31]} O-O {
[%emt 0:00:44]} 12. Nf5 {115} Rc8 {[%emt 0:00:09]} 13. Bg5 {349} Bxf5 {1064}
14. exf5 {[%emt 0:00:56]} Ne8 {[%emt 0:00:20]} 15. Be3 {1011} Bg5 {151} 16. Bd5
{[%emt 0:00:22]} Bxe3 {469} 17. fxe3 {[%emt 0:00:03]} Nf6 {[%emt 0:00:06]} 18.
Qf3 {[%emt 0:00:33]} Re8 {710} 19. b3 {160} h6 {689} 20. Be4 {124} c4 {254} 21.
dxc4 {391} Nxc4 {[%emt 0:00:04]} 22. bxc4 {117} Rxc4 {[%emt 0:00:27]} 23. Bc6 {
[%emt 0:00:14]} Rxc3 {[%emt 0:00:27]} 24. Bxe8 {[%emt 0:00:03]} Qxe8 {[%emt 0:
00:43]} 25. Qb7 {[%emt 0:00:17]} Ng4 {179} 26. f6 {545} Nxf6 {530} 27. Qxa6 {
[%emt 0:00:48]} Qd7 {149} 28. Rab1 {544} Rc5 {430} 29. a4 {457} bxa4 {169} 30.
Rb8+ {211} Kh7 {239} 31. Rxf6 {[%emt 0:00:28]} gxf6 {[%emt 0:00:08]} 32. Qa8 {
[%emt 0:00:03]} Qc6 {243} 33. Rh8+ {[%emt 0:00:21]} Kg6 {[%emt 0:00:04]} 34.
Qg8+ {423} Kf5 {[%emt 0:00:01]} 35. Qxf7 {[%emt 0:00:57]} Rxc2 {187} 36. Qh7+ {
162} Ke6 {[%emt 0:00:05]} 37. Qg8+ {[%emt 0:00:07]} Kf5 {[%emt 0:00:04]} 38.
Qh7+ {[%emt 0:00:27]} Ke6 {[%emt 0:00:01]} 1/2-1/2

[Event "4th Sinquefield Cup 2016"]
[Site "Saint Louis"]
[Date "2016.08.07"]
[Round "3"]
[White "Anand, Viswanathan"]
[Black "Nakamura, Hikaru"]
[Result "1/2-1/2"]
[ECO "B90"]
[WhiteElo "2770"]
[BlackElo "2791"]
[PlyCount "59"]
[EventDate "2016.??.??"]
[EventCountry "USA"]
[SourceTitle "playchess.com"]
[Source "ChessBase"]
[TimeControl "40/7200:3600+30"]

1. e4 {[%emt 0:00:03]} c5 {[%emt 0:00:18]} 2. Nf3 {[%emt 0:00:09]} d6 {[%emt 0:
00:03]} 3. d4 {[%emt 0:00:07]} cxd4 {[%emt 0:00:08]} 4. Nxd4 {[%emt 0:00:06]}
Nf6 {[%emt 0:00:04]} 5. Nc3 {[%emt 0:00:07]} a6 {[%emt 0:00:05]} 6. h3 {
[%emt 0:00:09]} e5 {[%emt 0:00:05]} 7. Nde2 {[%emt 0:00:09]} h5 {[%emt 0:00:08]
} 8. Nd5 {[%emt 0:00:07]} Nxd5 {[%emt 0:00:09]} 9. Qxd5 {[%emt 0:00:11]} Nc6 {
[%emt 0:00:05]} 10. Qd1 {[%emt 0:00:38]} Be6 {[%emt 0:00:10]} 11. Nc3 {[%emt 0:
00:36]} Ne7 {[%emt 0:00:05]} 12. Bd3 {191} d5 {615} 13. exd5 {[%emt 0:00:25]}
Nxd5 {[%emt 0:00:07]} 14. O-O {[%emt 0:00:07]} Nb4 {882} 15. Qe2 {1254} Qc7 {
975} 16. f4 {662} Bc5+ {528} 17. Kh1 {113} Nxd3 {[%emt 0:00:08]} 18. cxd3 {
[%emt 0:00:12]} Bd4 {[%emt 0:00:01]} 19. f5 {496} Bd7 {419} 20. f6 {158} g6 {
[%emt 0:00:28]} 21. Nd5 {155} Qd6 {[%emt 0:00:12]} 22. Ne7 {[%emt 0:00:29]} Rd8
{60} 23. a4 {963} Bc6 {584} 24. Be3 {443} Bxe3 {451} 25. Nxc6 {67} bxc6 {
[%emt 0:00:09]} 26. Qxe3 {[%emt 0:00:07]} Qd4 {[%emt 0:00:02]} 27. Rae1 {257}
Qxe3 {[%emt 0:00:08]} 28. Rxe3 {[%emt 0:00:06]} O-O {[%emt 0:00:06]} 29. Rxe5 {
[%emt 0:00:24]} Rxd3 {[%emt 0:00:02]} 30. Rc5 {[%emt 0:00:13]} 1/2-1/2

[Event "4th Sinquefield Cup 2016"]
[Site "Saint Louis"]
[Date "2016.08.07"]
[Round "3"]
[White "Topalov, Veselin"]
[Black "Vachier-Lagrave, Maxime"]
[Result "1/2-1/2"]
[ECO "B90"]
[WhiteElo "2761"]
[BlackElo "2819"]
[PlyCount "108"]
[EventDate "2016.??.??"]
[EventCountry "USA"]
[SourceTitle "playchess.com"]
[Source "ChessBase"]
[TimeControl "40/7200:3600+30"]

1. e4 {[%emt 0:00:04]} c5 {[%emt 0:00:02]} 2. Nf3 {[%emt 0:00:09]} d6 {[%emt 0:
00:02]} 3. d4 {[%emt 0:00:06]} cxd4 {[%emt 0:00:03]} 4. Nxd4 {[%emt 0:00:07]}
Nf6 {[%emt 0:00:02]} 5. Nc3 {[%emt 0:00:10]} a6 {[%emt 0:00:05]} 6. Be3 {
[%emt 0:00:13]} Ng4 {[%emt 0:00:03]} 7. Bc1 {[%emt 0:00:07]} Nf6 {[%emt 0:00:
03]} 8. f3 {[%emt 0:00:08]} e5 {[%emt 0:00:05]} 9. Nb3 {[%emt 0:00:11]} Be6 {
[%emt 0:00:32]} 10. Be3 {[%emt 0:00:10]} Be7 {[%emt 0:00:03]} 11. Qd2 {[%emt 0:
00:15]} O-O {[%emt 0:00:04]} 12. O-O-O {[%emt 0:00:08]} Nbd7 {[%emt 0:00:03]}
13. g4 {[%emt 0:00:15]} b5 {[%emt 0:00:04]} 14. g5 {[%emt 0:00:21]} b4 {
[%emt 0:00:03]} 15. gxf6 {[%emt 0:00:25]} bxc3 {[%emt 0:00:03]} 16. Qxc3 {
[%emt 0:00:06]} Nxf6 {[%emt 0:00:04]} 17. Na5 {[%emt 0:00:07]} Rc8 {[%emt 0:00:
02]} 18. Nc6 {[%emt 0:00:15]} Qe8 {[%emt 0:00:02]} 19. Nxe7+ {[%emt 0:00:11]}
Qxe7 {[%emt 0:00:02]} 20. Qa5 {[%emt 0:00:13]} Rc6 {[%emt 0:00:03]} 21. Rg1 {
102} Rfc8 {[%emt 0:00:28]} 22. Rg2 {[%emt 0:00:15]} Bh3 {165} 23. Rgd2 {
[%emt 0:00:13]} Bxf1 {[%emt 0:00:06]} 24. Rxf1 {[%emt 0:00:04]} Qe6 {305} 25.
Rff2 {[%emt 0:00:07]} h6 {517} 26. Kb1 {[%emt 0:00:22]} Qh3 {294} 27. Rd3 {342}
Rxc2 {556} 28. Rxc2 {179} Qf1+ {[%emt 0:00:25]} 29. Bc1 {[%emt 0:00:05]} Qxd3 {
[%emt 0:00:06]} 30. Qd2 {[%emt 0:00:04]} Qxc2+ {[%emt 0:00:06]} 31. Qxc2 {
[%emt 0:00:07]} Rxc2 {[%emt 0:00:06]} 32. Kxc2 {[%emt 0:00:02]} Kf8 {1473} 33.
Kb3 {[%emt 0:00:52]} Ke7 {[%emt 0:00:11]} 34. Kc4 {[%emt 0:00:54]} Ke6 {458}
35. b4 {264} d5+ {163} 36. exd5+ {[%emt 0:00:07]} Nxd5 {[%emt 0:00:05]} 37. Bd2
{486} f5 {711} 38. b5 {563} axb5+ {[%emt 0:00:18]} 39. Kxb5 {[%emt 0:00:11]}
Kd6 {631} 40. a4 {[%emt 0:00:00]} g5 {[%emt 0:00:00]} 41. a5 {479} f4 {195} 42.
Kc4 {842} Nc7 {[%emt 0:00:12]} 43. Bb4+ {111} Ke6 {261} 44. h3 {264} h5 {
[%emt 0:00:50]} 45. Bc5 {316} e4 {400} 46. fxe4 {[%emt 0:00:09]} g4 {[%emt 0:
00:04]} 47. hxg4 {121} hxg4 {[%emt 0:00:13]} 48. Kd3 {173} Na6 {[%emt 0:00:08]}
49. Bd4 {142} Nb4+ {99} 50. Ke2 {[%emt 0:00:21]} Na6 {[%emt 0:00:12]} 51. Kf2 {
67} Kd6 {[%emt 0:00:29]} 52. Kg2 {139} Ke6 {[%emt 0:00:07]} 53. Kf2 {[%emt 0:
00:06]} Kd6 {[%emt 0:00:02]} 54. Kg2 {[%emt 0:00:06]} Ke6 {[%emt 0:00:03]}
1/2-1/2

[Event "4th Sinquefield Cup 2016"]
[Site "Saint Louis"]
[Date "2016.08.07"]
[Round "3"]
[White "Svidler, Peter"]
[Black "Caruana, Fabiano"]
[Result "1/2-1/2"]
[ECO "A05"]
[WhiteElo "2751"]
[BlackElo "2807"]
[PlyCount "82"]
[EventDate "2016.??.??"]
[EventCountry "USA"]
[SourceTitle "playchess.com"]
[Source "ChessBase"]
[TimeControl "40/7200:3600+30"]

1. Nf3 {[%emt 0:00:04]} Nf6 {[%emt 0:00:14]} 2. c4 {[%emt 0:00:07]} e6 {
[%emt 0:00:14]} 3. Nc3 {77} d5 {[%emt 0:00:06]} 4. d4 {[%emt 0:00:05]} Be7 {
[%emt 0:00:08]} 5. Bg5 {284} h6 {[%emt 0:00:36]} 6. Bh4 {[%emt 0:00:28]} O-O {
[%emt 0:00:15]} 7. e3 {[%emt 0:00:08]} Ne4 {[%emt 0:00:21]} 8. Bxe7 {[%emt 0:
00:33]} Qxe7 {[%emt 0:00:06]} 9. Rc1 {271} c6 {163} 10. Bd3 {92} Nxc3 {[%emt 0:
00:07]} 11. Rxc3 {[%emt 0:00:04]} dxc4 {60} 12. Bxc4 {124} Nd7 {127} 13. O-O {
73} b6 {338} 14. Bd3 {729} c5 {79} 15. Be4 {[%emt 0:00:58]} Rb8 {[%emt 0:00:18]
} 16. Qa4 {[%emt 0:00:42]} Nf6 {591} 17. Bc6 {397} cxd4 {886} 18. Nxd4 {112} e5
{248} 19. Nf3 {[%emt 0:00:14]} Rd8 {412} 20. h3 {798} a6 {452} 21. Rfc1 {370}
b5 {1331} 22. Qa5 {479} Be6 {906} 23. Qxa6 {1192} Nd5 {491} 24. Bxd5 {73} Bxd5
{[%emt 0:00:04]} 25. Rc7 {162} Qb4 {[%emt 0:00:41]} 26. Qa3 {403} Qxa3 {301}
27. bxa3 {[%emt 0:00:09]} Bxf3 {[%emt 0:00:15]} 28. gxf3 {[%emt 0:00:02]} Ra8 {
159} 29. R7c5 {277} Rxa3 {[%emt 0:00:47]} 30. Rxe5 {[%emt 0:00:58]} Rxa2 {87}
31. Rxb5 {[%emt 0:00:02]} Rdd2 {[%emt 0:00:34]} 32. Rf1 {[%emt 0:00:02]} Rdb2 {
149} 33. Re5 {203} Rb6 {[%emt 0:00:05]} 34. f4 {[%emt 0:00:20]} Rab2 {80} 35.
Kg2 {[%emt 0:00:21]} g6 {[%emt 0:00:13]} 36. h4 {300} h5 {[%emt 0:00:01]} 37.
f5 {159} Kg7 {[%emt 0:00:01]} 38. fxg6 {77} Rxg6+ {[%emt 0:00:07]} 39. Kh3 {
[%emt 0:00:08]} Rf6 {[%emt 0:00:18]} 40. Rg1+ {[%emt 0:00:00]} Rg6 {[%emt 0:00:
00]} 41. Rf1 {694} Rf6 {278} 1/2-1/2

[Event "4th Sinquefield Cup 2016"]
[Site "Saint Louis"]
[Date "2016.08.08"]
[Round "4"]
[White "Vachier-Lagrave, Maxime"]
[Black "Svidler, Peter"]
[Result "1/2-1/2"]
[ECO "C92"]
[WhiteElo "2819"]
[BlackElo "2751"]
[PlyCount "69"]
[EventDate "2016.??.??"]
[EventCountry "USA"]
[SourceTitle "playchess.com"]
[Source "ChessBase"]
[TimeControl "40/7200:3600+30"]

1. e4 {(5s)} e5 {(8s)} 2. Nf3 {(3s)} Nc6 {(3s)} 3. Bb5 {(5s)} a6 {(7s)} 4. Ba4
{(4s)} Nf6 {(5s)} 5. O-O {(23s)} Be7 {(3s)} 6. Re1 {(67s)} b5 {(5s)} 7. Bb3 {
(2s)} d6 {(6s)} 8. c3 {(6s)} O-O {(5s)} 9. h3 {(3s)} Re8 {(9s)} 10. d4 {(9s)}
Bb7 {(4s)} 11. Nbd2 {(14s)} Bf8 {(5s)} 12. d5 {(81s)} Nb8 {(26s)} 13. Nf1 {
( 24s)} Nbd7 {(4s)} 14. N3h2 {(7s)} c6 {(31s)} 15. dxc6 {(217s)} Bxc6 {(12s)}
16. Bg5 {(110s)} Qc7 {( 16s)} 17. Qf3 {(1048s)} a5 {(18s)} 18. Rad1 {(241s)}
Qb7 {(339s)} 19. Ng3 {(984s)} a4 {(60s)} 20. Bc2 {(6s)} b4 {(8s)} 21. Nf5 {
(543s)} Re6 {(298s)} 22. Bxf6 {(186s)} Nxf6 {(155s)} 23. Ng4 {(7s)} Nxg4 {
(395s)} 24. hxg4 {(7s)} g6 {(459s)} 25. Ne3 {(194s)} bxc3 {(11s)} 26. bxc3 {
(21s)} Bh6 {(80s)} 27. Rb1 {(502s)} Qa7 {(208s)} 28. Rb4 {(73s)} Bg5 {(486s)}
29. Qe2 {(35s)} Ree8 {(1313s)} 30. Qd3 {(210s)} Red8 {(478s)} 31. Nd5 {(233s)}
Rab8 {(254s)} 32. Reb1 {(273s)} a3 {(1103s)} 33. Nb6 {(573 s)} Kg7 {(290s)} 34.
g3 {(166s)} Rb7 {(349s)} 35. Kg2 {(610s)} 1/2-1/2

[Event "4th Sinquefield Cup 2016"]
[Site "Saint Louis"]
[Date "2016.08.08"]
[Round "4"]
[White "Nakamura, Hikaru"]
[Black "Topalov, Veselin"]
[Result "1/2-1/2"]
[ECO "D37"]
[WhiteElo "2791"]
[BlackElo "2761"]
[PlyCount "83"]
[EventDate "2016.??.??"]
[EventCountry "USA"]
[SourceTitle "playchess.com"]
[Source "ChessBase"]
[TimeControl "40/7200:3600+30"]

1. d4 {(6s)} Nf6 {(9s)} 2. c4 {(3s)} e6 {(7s)} 3. Nf3 {(4s)} d5 {(11s)} 4. Nc3
{(10s)} Be7 {(17s)} 5. Bf4 {(9s)} O-O {(18s)} 6. Qc2 {(5s)} c5 {(164s)} 7. dxc5
{(23s)} Na6 {(11s)} 8. Rd1 {(17s)} Nxc5 {( 147s)} 9. cxd5 {(12s)} Nxd5 {(180s)}
10. e4 {(2244s)} Nxf4 {(14s)} 11. Rxd8 {(5s)} Rxd8 {(7s)} 12. Ne5 {(673s)} Bf6
{(329s)} 13. Nb5 {(146s)} b6 {(444s)} 14. b4 {(62s)} Bxe5 {(858s)} 15. bxc5 {
(3s)} a6 {(223s)} 16. Nd6 {(72s)} bxc5 {(167s)} 17. Nc4 {(94s)} Bd4 {(166s)}
18. g3 {(1s)} Ng6 {(67s)} 19. Be2 {(4s)} Bd7 {(691s)} 20. O-O {(9s)} Bb5 {
(242s)} 21. Na5 {(281s)} Ne5 {(150s)} 22. Rd1 {(159s)} Rab8 {(891s)} 23. Kg2 {
(50s)} Bxe2 {(175s)} 24. Qxe2 {(14s)} Rb5 {(24s)} 25. Nb3 {(47s)} h6 {(27s)}
26. Rd2 {(427s)} Nc6 {(194s)} 27. Qc4 {(301s)} e5 {(103s)} 28. a4 {(199s)} Rb4
{(87s)} 29. Qxa6 {( 49s)} Rxb3 {(232s)} 30. Qxc6 {(7s)} Ra3 {(60s)} 31. Qa6 {
(181s)} Rb8 {(49s)} 32. a5 {(200s)} c4 {( 111s)} 33. Qxc4 {(390s)} Rxa5 {(5s)}
34. Kh3 {(50s)} Rc5 {(53s)} 35. Qe2 {(20s)} Rcb5 {(37s)} 36. f4 {(40s)} Rb4 {
(77s)} 37. Qd1 {(92s)} Rb1 {(107s)} 38. Qh5 {(125s)} R1b5 {(196s)} 39. Qe2 {
(196s)} Rb4 40. Qd1 {(0s)} Rb1 {(0s)} 41. Qh5 {(297s)} R1b5 {(61s)} 42. Qd1 {
(14s)} 1/2-1/2

[Event "4th Sinquefield Cup 2016"]
[Site "Saint Louis"]
[Date "2016.08.08"]
[Round "4"]
[White "Aronian, Levon"]
[Black "Caruana, Fabiano"]
[Result "1/2-1/2"]
[ECO "E10"]
[WhiteElo "2792"]
[BlackElo "2807"]
[PlyCount "59"]
[EventDate "2016.??.??"]
[EventCountry "USA"]
[SourceTitle "playchess.com"]
[Source "ChessBase"]
[TimeControl "40/7200:3600+30"]

1. d4 {(5s)} Nf6 {(9s)} 2. c4 {(16s)} e6 {(7s)} 3. Nf3 {(10s)} c5 {(6s)} 4. e3
{(47s)} a6 {(81s)} 5. Nc3 {(93s)} d5 {(21s)} 6. cxd5 {(6s)} exd5 {(10s)} 7. g3
{(6s)} Nc6 {(263s)} 8. Bg2 {(35s)} Bd6 {(111 s)} 9. dxc5 {(327s)} Bxc5 {(17s)}
10. O-O {(30s)} O-O {(16s)} 11. Nd4 {(768s)} Nxd4 {(338s)} 12. exd4 {(6s)} Ba7
{(32s)} 13. Bg5 {(220s)} Be6 {(208s)} 14. Rc1 {(19s)} Rc8 {(534s)} 15. Bxf6 {
(14s)} Qxf6 {(6s)} 16. Nxd5 {(4s)} Bxd5 {(4s)} 17. Bxd5 {(4s)} Rxc1 {(26s)} 18.
Qxc1 {(3s)} b5 {(19s)} 19. Qc6 {(32s)} Bxd4 {(9s)} 20. Qxf6 {(8s)} Bxf6 {(4s)}
21. b3 {(22s)} Rd8 {(6s)} 22. Rd1 {(13s)} Kf8 {(6 s)} 23. Kf1 {(14s)} a5 {(12s)
} 24. Bf3 {(13s)} Rxd1+ {(5s)} 25. Bxd1 {(4s)} Ke7 {(6s)} 26. a4 {(7s)} bxa4 {
(3s)} 27. bxa4 {(3s)} Bc3 {(8s)} 28. Bb3 {(5s)} Bb4 {(3s)} 29. Ke2 {(5s)} Kf8 {
(3s)} 30. Bc4 {( 5s)} 1/2-1/2

[Event "4th Sinquefield Cup 2016"]
[Site "Saint Louis"]
[Date "2016.08.08"]
[Round "4"]
[White "Ding, Liren"]
[Black "Anand, Viswanathan"]
[Result "1/2-1/2"]
[ECO "A14"]
[WhiteElo "2755"]
[BlackElo "2770"]
[PlyCount "72"]
[EventDate "2016.??.??"]
[EventCountry "USA"]
[SourceTitle "playchess.com"]
[Source "ChessBase"]
[TimeControl "40/7200:3600+30"]

1. c4 {(5s)} c5 {(8s)} 2. Nf3 {(26s)} Nc6 {(12s)} 3. Nc3 {(5s)} Nf6 {(7s)} 4.
g3 {(8s)} d5 {(7s)} 5. cxd5 {(15s)} Nxd5 {(16s)} 6. Bg2 {(3s)} e6 {(35s)} 7.
O-O {(126s)} Be7 {(125s)} 8. d4 {(6s)} O-O {(84 s)} 9. Nxd5 {(608s)} exd5 {
(21s)} 10. dxc5 {(27s)} Bxc5 {(12s)} 11. Bg5 {(99s)} Qd7 {(19s)} 12. Rc1 {
(144s)} Bb6 {(155s)} 13. Bd2 {(249s)} Qe7 {(137s)} 14. Bc3 {(550s)} Rd8 {(193s)
} 15. e3 {(740s)} Bf5 {(90s)} 16. Re1 {(327s)} Be4 {(1088s)} 17. Re2 {(717s)}
Rd7 {(788s)} 18. Rd2 {(54s)} Rad8 {( 531s)} 19. Qe2 {(152s)} Rd6 {(607s)} 20.
Rcd1 {(228s)} h6 {(439s)} 21. h4 {(410s)} Qe6 {(613s)} 22. Nd4 {(600s)} Nxd4 {
(351s)} 23. Bxd4 {(114s)} Ba5 {(21s)} 24. Bc3 {(238s)} Bxc3 {(24s)} 25. bxc3 {
( 2s)} Bxg2 {(11s)} 26. Kxg2 {(3s)} Rc8 {(128s)} 27. Qf3 {(30s)} Rxc3 {(20s)}
28. Rxd5 {(3s)} Rxd5 {( 11s)} 29. Rxd5 {(8s)} Rc8 {(90s)} 30. Ra5 {(148s)} Qb6
{(39s)} 31. Re5 {(21s)} Kf8 {(171s)} 32. Qf5 {(120s)} Re8 {(98s)} 33. Rxe8+ {
(144s)} Kxe8 {(6s)} 34. Qe5+ {(10s)} Kf8 {(6s)} 35. Qb8+ {(4s)} Ke7 {(5s)} 36.
Qe5+ {(4s)} Kf8 {(6s)} 1/2-1/2

[Event "4th Sinquefield Cup 2016"]
[Site "Saint Louis"]
[Date "2016.08.08"]
[Round "4"]
[White "So, Wesley"]
[Black "Giri, Anish"]
[Result "1/2-1/2"]
[ECO "D02"]
[WhiteElo "2771"]
[BlackElo "2769"]
[PlyCount "88"]
[EventDate "2016.??.??"]
[EventCountry "USA"]
[SourceTitle "playchess.com"]
[Source "ChessBase"]
[TimeControl "40/7200:3600+30"]

1. Nf3 {(5s)} d5 {(4s)} 2. d4 {(5s)} Nf6 {(3s)} 3. c4 {(6s)} e6 {(3s)} 4. g3 {
(5s)} Bb4+ {(6s)} 5. Bd2 {(5s)} Be7 {(3s)} 6. Bg2 {(8s)} O-O 7. O-O {(5s)} c6 {
(12s)} 8. Qc2 {(5s)} Nbd7 {(10s)} 9. Rd1 {(16s)} b6 {(7s)} 10. b3 {(5s)} a5 {
(19s)} 11. Bc3 {(455s)} Ne4 {(52s)} 12. Bb2 {(64s)} f5 {(16s)} 13. e3 {( 935s)}
Ba6 {(221s)} 14. Ba3 {(517s)} Bxa3 {(808s)} 15. Nxa3 {(4s)} b5 {(8s)} 16. Rac1
{(348s)} Qe7 {(307s)} 17. cxb5 {(311s)} cxb5 {(27s)} 18. Nb1 {(3s)} b4 {(205s)}
19. Qb2 {(529s)} Rfc8 {(131s)} 20. Ne1 {(134s)} h5 {(316s)} 21. Rxc8+ {(475s)}
Rxc8 {(16s)} 22. Rc1 {(2s)} Qd8 {(114s)} 23. Bf1 {(152s)} Bxf1 {(86s)} 24. Kxf1
{(7s)} h4 {(17s)} 25. Rxc8 {(285s)} Qxc8 {(2s)} 26. Qc2 {(7s)} Qxc2 {( 409s)}
27. Nxc2 {(4s)} hxg3 {(20s)} 28. hxg3 {(4s)} g5 {(192s)} 29. Ke2 {(162s)} Kf7 {
(286s)} 30. a3 {(27s)} bxa3 {(32s)} 31. Nbxa3 {(7s)} Nc3+ {(151s)} 32. Kd2 {
(6s)} Ne4+ {(5s)} 33. Ke2 {(4s)} Ndf6 {(225s)} 34. b4 {(326s)} a4 {(622s)} 35.
Ne1 {(5s)} Ke7 {(63s)} 36. Nd3 {(193s)} Nd7 {(29s)} 37. Kd1 {(400s)} Nb6 {
(385s)} 38. Kc2 {(28s)} Nc4 {(528s)} 39. Nxc4 {(603s)} dxc4 {(7s)} 40. Nb2 {
(0s)} Nxf2 {(0s)} 41. Nxa4 {(0s)} Ne4 {(456s)} 42. Nb6 {(125s)} c3 {(701s)} 43.
Na4 {(178s)} Nxg3 {( 10s)} 44. Kxc3 {(139s)} f4 {(149s)} 1/2-1/2

[Event "4th Sinquefield Cup 2016"]
[Site "Saint Louis"]
[Date "2016.08.09"]
[Round "5"]
[White "Topalov, Veselin"]
[Black "Ding, Liren"]
[Result "1-0"]
[ECO "C92"]
[WhiteElo "2761"]
[BlackElo "2755"]
[PlyCount "131"]
[EventDate "2016.??.??"]
[EventCountry "USA"]
[SourceTitle "playchess.com"]
[Source "ChessBase"]
[TimeControl "40/7200:3600+30"]

1. e4 {(2s)} e5 {(5s)} 2. Nf3 {(5s)} Nc6 {(4s)} 3. Bb5 {(7s)} a6 {(4s)} 4. Ba4
{(4s)} Nf6 {(5s)} 5. O-O {(5s)} Be7 {(5s)} 6. Re1 {(23s)} b5 {(7s)} 7. Bb3 {
(5s)} d6 {(4s)} 8. c3 {(7s)} O-O {(6s)} 9. h3 {(10s)} Re8 {(4s)} 10. d4 {(16s)}
Bb7 {(4s)} 11. Nbd2 {(15s)} Bf8 {(5s)} 12. a3 {(85s)} h6 {(7s)} 13. Bc2 {
( 174s)} Nb8 {(9s)} 14. b3 {(105s)} Nbd7 {(20s)} 15. Bb2 {(6s)} Rc8 {(739s)}
16. a4 {(128s)} b4 {(140s)} 17. cxb4 {(169s)} exd4 {(20s)} 18. Bxd4 {(234s)} c5
{(186s)} 19. bxc5 {(496s)} Nxc5 {(7s)} 20. Qb1 {(55s)} a5 {(672s)} 21. b4 {
(507s)} axb4 {(648s)} 22. Qxb4 {(135s)} Ba8 {(623s)} 23. a5 {(338s)} d5 {(185s)
} 24. Bxf6 {(66s)} Qxf6 {(6s)} 25. e5 {(41s)} Qa6 {(728s)} 26. Qg4 {(18s)} Ne6
{(68s)} 27. Bf5 {(231s)} Rc5 {(357s)} 28. Bxe6 {(252s)} Rxe6 {(35s)} 29. Nb3 {
(183s)} Rc4 {(58s)} 30. Nfd4 {( 153s)} Bb7 {(172s)} 31. Qf5 {(588s)} Re7 {
(100s)} 32. e6 {(191s)} Bc8 {(166s)} 33. exf7+ {(76s)} Rxf7 {(3s)} 34. Qxd5 {
(13s)} Bb7 {(128s)} 35. Qe6 {(86s)} Rb4 {(21s)} 36. Re3 {(346s)} Qa8 {(115s)}
37. Rc1 {(281s)} Bd5 {(137s)} 38. Rc8 {(27s)} Bxe6 {(61s)} 39. Rxa8 {(6s)} Bc4
{(12s)} 40. Rc8 {(0 s)} Kh7 {(0s)} 41. Rc3 {(940s)} Ba6 {(1175s)} 42. Rd8 {(9s)
} Ra4 {(268s)} 43. Ne6 {(686s)} Bb4 {(191 s)} 44. Rc6 {(281s)} Bb5 {(88s)} 45.
Rc1 {(213s)} Ra2 {(370s)} 46. f3 {(339s)} Ba4 {(123s)} 47. Nbd4 {(592s)} Bxa5 {
(61s)} 48. Ra8 {(226s)} Bb6 {(308s)} 49. Kh1 {(76s)} Bb3 {(271s)} 50. Rb8 {
(50 s)} Bxe6 {(26s)} 51. Rxb6 {(357s)} Bf5 {(841s)} 52. Rd6 {(65s)} Bg6 {(165s)
} 53. Rd8 {(82s)} Bf5 {( 102s)} 54. Rd6 {(132s)} Bg6 {(4s)} 55. Rc8 {(14s)} Rb7
{(91s)} 56. Rdd8 {(260s)} Bd3 {(157s)} 57. Ne6 {(326s)} Bf1 {(271s)} 58. Nf8+ {
(559s)} Kg8 {(4s)} 59. Ng6+ {(16s)} Kh7 {(232s)} 60. Nf8+ {( 581s)} Kg8 {(1s)}
61. Ne6+ {(172s)} Kh7 {(111s)} 62. Rh8+ {(22s)} Kg6 {(7s)} 63. Nf4+ {(5s)} Kg5
{( 81s)} 64. Rhf8 {(32s)} Rbb2 {(435s)} 65. Rc7 {(49s)} g6 {(45s)} 66. g3 {
(33s)} 1-0

[Event "4th Sinquefield Cup 2016"]
[Site "Saint Louis"]
[Date "2016.08.09"]
[Round "5"]
[White "Anand, Viswanathan"]
[Black "So, Wesley"]
[Result "1/2-1/2"]
[ECO "C50"]
[WhiteElo "2770"]
[BlackElo "2771"]
[PlyCount "60"]
[EventDate "2016.??.??"]
[EventCountry "USA"]
[SourceTitle "playchess.com"]
[Source "ChessBase"]
[TimeControl "40/7200:3600+30"]

1. e4 {(4s)} e5 {(5s)} 2. Nf3 {(9s)} Nc6 {(6s)} 3. Bc4 {(10s)} Bc5 {(8s)} 4.
O-O {(29s)} Nf6 {(5s)} 5. d3 {(6s)} O-O {(5s)} 6. c3 {(8s)} d5 {(4s)} 7. exd5 {
(11s)} Nxd5 {(6s)} 8. a4 {(14s)} Nb6 {(12s)} 9. Bb5 {[#] (78s)} Ne7 $1 {
(6s) This was first played by Norwegian GM Jon Hammer in May this year in the
French Top 12 League.} 10. a5 {(86s)} c6 {(5s)} 11. axb6 {(78s)} cxb5 {(4s)}
12. Rxa7 {(10s)} Rxa7 {( 6s)} 13. bxa7 {(7s)} Bxa7 {(3s)} 14. Nxe5 Bf5 {(10s)}
15. Re1 {(965s)} (15. Be3 Bb8 16. d4 Ng6 17. Nxg6 hxg6 18. Nd2 Qd6 19. g3 Qd5
20. Re1 Re8 21. Bf4 Rxe1+ 22. Qxe1 Bxf4 23. gxf4 b4 {1/2-1/2 (77) Milliet,S 
(2346)-Hammer,J (2689) Drancy 2016}) 15... Bb8 $1 {(17s) Anand said that this
was more precise than what he himself had prepared in this line, and praised
the idea of 15...Bb8! followed by ...b4 and ...Qd5.} 16. Na3 {(169s)} b4 {
(417s)} 17. cxb4 {(31s)} Qd5 {(7s)} 18. Nec4 {(804s)} Bxd3 {(1016s)} 19. Rxe7 {
(383s)} Bxc4 {( 6s)} 20. Qxd5 {(54s)} Bxd5 {(5s)} 21. Rd7 {(178s)} Bc6 {(63s)}
22. Rd1 {(10s)} Ba4 {(300s)} 23. Rd3 {(38s)} Bc7 {(104s)} 24. b3 {(97s)} Bc6 {
(5s)} 25. f3 {(84s)} Rd8 {(27s)} 26. Rxd8+ {(16s)} Bxd8 {(4s)} 27. b5 {(14s)}
Bd7 {(40s)} 28. Kf2 {(57s)} Be7 {(14s)} 29. Ke2 {(17s)} Bxa3 {(4s)} 30. Bxa3 {
(6s)} Bxb5+ 1/2-1/2

[Event "4th Sinquefield Cup 2016"]
[Site "Saint Louis"]
[Date "2016.08.09"]
[Round "5"]
[White "Giri, Anish"]
[Black "Aronian, Levon"]
[Result "1/2-1/2"]
[ECO "A29"]
[WhiteElo "2769"]
[BlackElo "2792"]
[Annotator ""]
[PlyCount "59"]
[EventDate "2016.??.??"]
[EventCountry "USA"]
[SourceTitle "playchess.com"]
[Source "ChessBase"]
[TimeControl "40/7200:3600+30"]

1. c4 {(2s)} Nf6 {(17s)} 2. Nc3 {(4s)} e5 {(11s)} 3. Nf3 {(5s)} Nc6 {(11s)} 4. g3 {(3s)} d5 {(75s)} 5.
cxd5 {(10s)} Nxd5 {(3s)} 6. Bg2 {(6s)} Nb6 {(4s)} 7. O-O {(8s)} Be7 {(5s)} 8. Rb1 {(18s)} a5 {(16s)} 9.
d3 {(8s)} O-O {(8s)} 10. Be3 {(14s)} Be6 {(5s)} 11. d4 {(23s)} exd4 {(53s)} 12. Nxd4 {(5s)} Nxd4 {(29
s)} 13. Bxd4 {(6s)} c6 {(103s)} 14. f4 {(5s)} f5 {(427s)} 15. e4 {(44s)} Rf7 {(35s)} 16. Bh3 {(373s)}
Bb4 {(1082s)} 17. Bxf5 {(1045s)} Bxf5 {(38s)} 18. exf5 {(3s)} Nc4 {(40s)} 19. Qd3 {(1380s)} c5 {(
324s)} 20. Qxc4 {(210s)} Qxd4+ {(10s)} 21. Qxd4 {(3s)} cxd4 {(6s)} 22. Ne4 {(247s)} Re8 {(65s)} 23.
a3 {(501s)} Rxe4 {(64s)} 24. axb4 {(2s)} axb4 {(23s)} 25. Rbe1 {(117s)} Rxe1 {(10s)} 26. Rxe1 {(2s)}
Rxf5 {(6s)} 27. Rd1 {(84s)} Rc5 {(15s)} 28. Rxd4 {(39s)} Rc1+ {(3s)} 29. Kg2 {(28s)} Rc2+ {(4s)} 30.
Kh3 {(18s)} 1/2-1/2